fUSD/lending_fUSD_20240821
["ID","MTS","AMOUNT","RATE_DAILY","PERIOD"]
[335442056,1724233840934,-150.09,0.0001549,2]
[335442058,1724233840943,-150.09,0.0001549,2]
[335442060,1724233840952,-150.09,0.0001549,2]
[335442061,1724233840962,-150.09,0.0001549,2]
[335442063,1724233840971,-150.09,0.0001549,2]
[335442065,1724233840980,-150.09,0.0001549,2]
[335442067,1724233840989,-150.09,0.0001549,2]
[335442069,1724233840999,-150.09,0.0001549,2]
[335442071,1724233841008,-150.09,0.0001549,2]
[335442073,1724233841017,-150.09,0.0001549,2]
[335442075,1724233841026,-150.09,0.0001549,2]
[335442077,1724233841035,-150.09,0.0001549,2]
[335442079,1724233841045,-150.09,0.0001549,2]
[335442081,1724233841054,-150.09,0.0001549,2]
[335442082,1724233841063,-150.09,0.0001549,2]
[335442084,1724233841073,-150.09,0.0001549,2]
[335442086,1724233841082,-150.09,0.0001549,2]
[335442088,1724233841091,-150.09,0.0001549,2]
[335442090,1724233841100,-150.09,0.0001549,2]
[335442091,1724233841110,-150.09,0.0001549,2]
[335442093,1724233841119,-150.09,0.0001549,2]
[335442095,1724233841128,-150.09,0.0001549,2]
[335442097,1724233841138,-150.09,0.0001549,2]
[335442099,1724233841148,-150.09,0.0001549,2]
[335442101,1724233841158,-150.09,0.0001549,2]
[335442103,1724233841168,-150.09,0.0001549,2]
[335442104,1724233841177,-150.09,0.0001549,2]
[335442106,1724233841186,-150.09,0.0001549,2]
[335442108,1724233841196,-150.09,0.0001549,2]
[335442110,1724233841205,-150.09,0.0001549,2]
[335442112,1724233841214,-395877.62380698,0.000155,2]
[335442114,1724233841223,-7821437.8765811,0.000155,2]
[335442116,1724233841236,-66415.4347615,0.000155,2]
[335442118,1724233841247,-180841.33855762,0.000155,2]
[335442120,1724233841257,-614.35823172,0.000155,2]
[335442122,1724233841268,-338.805,0.000155,2]
[335442124,1724233841280,-890.90712876,0.000155,2]
[335442126,1724233841290,-354.16960267,0.000155,2]
[335442128,1724233841302,-250.13277065,0.000155,2]
[335442130,1724233841312,-1358.27907488,0.000155,2]
[335442132,1724233841324,-9095.06822044,0.000155,2]
[335442134,1724233841334,-17940.32215974,0.000155,2]
[335442136,1724233841346,-8405.759899,0.000155,2]
[335442138,1724233841357,-9837.1995,0.000155,2]
[335442140,1724233841368,-588.209208,0.000155,2]
[335442161,1724233841568,-380.42693498,0.000155,2]
[335442163,1724233841581,-980.83497412,0.000155,2]
[335442166,1724233841593,-6984.46581185,0.000155,2]
[335442168,1724233841604,-270.59,0.000155,2]
[335442343,1724233843219,-1233.86,0.000155,2]
[335442346,1724233843231,-537.16417105,0.000155,2]
[335442350,1724233843242,-3224.73762716,0.000155,2]
[335442354,1724233843258,-500.0,0.000155,2]
[335442361,1724233843295,-337.27249606,0.000155,2]
[335442363,1724233843307,-263.95605343,0.000155,2]
[335442365,1724233843318,-300.0,0.000155,2]
[335442367,1724233843328,-801.46196804,0.000155,2]
[335442369,1724233843339,-2759.5004898,0.000155,2]
[335442372,1724233843357,-880.8,0.000155,2]
[335442506,1724233844787,-938.72103182,0.000155,2]
[335442508,1724233844798,-20481.6,0.000155,2]
[335442511,1724233844809,-500.0,0.000155,2]
[335442513,1724233844820,-11209.15747998,0.000155,2]
[335442515,1724233844831,-3484.0,0.000155,2]
[335442517,1724233844842,-942.66174752,0.000155,2]
[335442519,1724233844854,-10327.96587944,0.000155,2]
[335442522,1724233844869,-572.21,0.000155,2]
[335442524,1724233844881,-23489.6,0.000155,2]
[335442658,1724233846207,-155.0,0.00014782,2]
[335442660,1724233846217,-429.82021014,0.000155,2]
[335442662,1724233846228,-26977.16239601,0.000155,2]
[335442664,1724233846239,-852.18109769,0.000155,2]
[335442667,1724233846251,-670.56,0.000155,2]
[335442669,1724233846262,-515.83635347,0.000155,2]
[335442672,1724233846282,-343.68665496,0.000155,2]
[335442674,1724233846293,-4717.28541024,0.000155,2]
[335442681,1724233846349,-300.0,0.000155,2]
[335442683,1724233846361,-400.57,0.000155,2]
[335442685,1724233846372,-451.23409272,0.000155,2]
[335442691,1724233846420,-4412.26994097,0.000155,2]
[335442700,1724233846488,-456.95008335,0.000155,2]
[335442702,1724233846499,-585.22668101,0.000155,2]
[335442704,1724233846511,-1346.51356479,0.000155,2]
[335442709,1724233846551,-27493.91517875,0.000155,2]
[335442712,1724233846563,-3075.0,0.000155,2]
[335442714,1724233846573,-18687.90820847,0.000155,2]
[335442716,1724233846584,-2285.84891763,0.000155,2]
[335442717,1724233846616,-11113.66529634,0.000155,2]
[335442718,1724233846628,-495.28749195,0.000155,2]
[335443992,1724234078906,1050.0,0.0001,2]
[335443993,1724234525343,150.04,0.00010959,2]
[335443994,1724234969587,2343.73872137,0.00010999,2]
[335443998,1724235032302,-387.06,0.00011962,2]
[335443999,1724235032312,-998.94,0.00012,2]
[335444000,1724235032324,-101.06,0.00012,2]
[335444001,1724235032335,-274.80467231,0.00012089,2]
[335444002,1724235032344,-102.72929102,0.00012613,2]
[335444003,1724235032355,-197.20181836,0.00012613,2]
[335444004,1724235032365,-426.64857768,0.00012938,2]
[335444005,1724235032374,-166.39780491,0.0001294,2]
[335444006,1724235032384,-380.76862131,0.0001294,2]
[335444007,1724235032393,-155.0,0.0001294,2]
[335444008,1724235032402,-539.07,0.00013,2]
[335444009,1724235032412,-439.56904759,0.00013086,2]
[335444010,1724235032421,-2342.91730099,0.00013332,2]
[335444011,1724235032431,-1478.14,0.00013391,2]
[335444012,1724235032440,-155.0,0.00013698,2]
[335444013,1724235032450,-173.35,0.00013929,2]
[335444014,1724235032459,-392.18121348,0.00014,3]
[335444015,1724235032472,-107.81878652,0.00014,3]
[335444016,1724235032481,-173.01975697,0.00014204,2]
[335444017,1724235032492,-157.64024303,0.00014204,2]
[335444018,1724235032503,-387.06,0.00014226,2]
[335444019,1724235032512,-527.19740296,0.00014509,2]
[335444020,1724235032521,-603.16,0.00014753,2]
[335444021,1724235032531,-1000.0,0.00014874,2]
[335444022,1724235032540,-77.16340651,0.00015333,2]
[335444023,1724235032560,-922.83659349,0.00015333,2]
[335444024,1724235032569,-359.86998923,0.00015399,2]
[335444025,1724235032579,-174.68941142,0.000154,2]
[335444026,1724235032589,-152.67384192,0.000154,2]
[335444027,1724235032598,-150.0,0.000154,2]
[335444029,1724235032608,-76.32305913,0.000154,2]
[335444031,1724235032619,-1079.82897878,0.000154,2]
[335444033,1724235032630,-479.84771151,0.000154,2]
[335444035,1724235032641,-500.0,0.000154,2]
[335444036,1724235032652,-636.26487759,0.000154,2]
[335444037,1724235032663,-582.076,0.000154,2]
[335444038,1724235032674,-258.80564125,0.000154,2]
[335444039,1724235032684,-3167.44197736,0.00015467,2]
[335444040,1724235032695,-397.92779334,0.00015467,2]
[335444041,1724235032706,-558.05788623,0.00015467,2]
[335444042,1724235032718,-4869.87206032,0.00015467,2]
[335444043,1724235032734,-7445.01238986,0.00015467,2]
[335444044,1724235032745,-1233.21320487,0.00015477,3]
[335444045,1724235032756,-746.56164777,0.00015477,3]
[335444046,1724235032768,-984.09450233,0.00015477,3]
[335444047,1724235032779,-1303.8801731,0.00015477,3]
[335444048,1724235032791,-535.511,0.00015477,3]
[335444049,1724235032802,-2599.99999999,0.00015477,3]
[335444050,1724235032814,-3410.50407077,0.00015477,3]
[335444051,1724235032825,-1096.73776496,0.00015477,3]
[335444052,1724235032836,-1238.04,0.00015477,3]
[335444053,1724235032851,-36851.45763621,0.00015477,3]
[335444054,1724235032861,-60000.0,0.00015478,3]
[335444055,1724235032871,-50491.0,0.00015485,3]
[335444056,1724235032880,-14873.40933325,0.00015489,2]
[335444065,1724235038558,-305.00194793,0.00012938,2]
[335444066,1724235038568,-171.41953258,0.00013086,2]
[335444067,1724235038578,-155.0,0.00013688,2]
[335444068,1724235038587,-36.14921131,0.00015489,2]
[335444069,1724235038599,-6025.3597,0.00015489,2]
[335444070,1724235038610,-3011.27936274,0.00015489,2]
[335444071,1724235038622,-500.0,0.00015489,2]
[335444072,1724235038643,-1320.62843662,0.00015489,2]
[335444073,1724235038657,-1810.62200581,0.00015489,2]
[335444074,1724235038678,-650.24999999,0.00015489,2]
[335444076,1724235038691,-10772.30195028,0.00015489,2]
[335444078,1724235038701,-65291.81505995,0.00015492,2]
[335444080,1724235038712,-8521.6748056,0.00015492,2]
[335444199,1724235040605,-383.0020099,0.00015492,2]
[335444200,1724235040786,-547.86202392,0.00015492,2]
[335444374,1724235043535,-9040.40493919,0.00015492,2]
[335444408,1724235046566,-562.1087512,0.00014782,2]
[335444411,1724235046578,-5047.40888674,0.00015492,2]
[335444413,1724235046590,-317.13482024,0.00015492,2]
[335444421,1724235046666,-2054.49796882,0.00015492,2]
[335444431,1724235046763,-1250.22806894,0.00015492,2]
[335444433,1724235052387,156.25,0.00010959,2]
[335444434,1724235908308,617279.36569979,0.00011,2]
[335444435,1724235908334,2710511.9811786,0.00011,2]
[335444436,1724235908361,241807.08140211,0.00011,2]
[335444438,1724236062126,595093.97179576,0.000108,2]
[335444439,1724236065958,153.06,0.00010959,2]
[335444456,1724236231465,-1000.37172,0.00011336,2]
[335444457,1724236231481,-619.65012665,0.00011336,2]
[335444458,1724236231499,-723.71687472,0.00011336,2]
[335444459,1724236231512,-527.19740296,0.00011999,2]
[335444460,1724236231522,-374.33,0.00012269,2]
[335444461,1724236231532,-292.76862131,0.0001294,2]
[335444462,1724236231542,-300.09116622,0.00012966,2]
[335444463,1724236231552,-155.31499189,0.00013052,2]
[335444464,1724236231562,-357.91024172,0.00013086,2]
[335444465,1724236231572,-155.0,0.00013086,2]
[335444466,1724236231585,-155.0,0.00013292,2]
[335444467,1724236231594,-155.0,0.00013292,2]
[335444468,1724236231604,-1000.0,0.00013669,2]
[335444469,1724236231614,-401.62337545,0.00013685,2]
[335444470,1724236231623,-250.0,0.000137,2]
[335444471,1724236231632,-189.94,0.0001385,2]
[335444472,1724236231641,-300.0,0.0001397,2]
[335444473,1724236231650,-1649.65892281,0.00013971,2]
[335444474,1724236231661,-5439.96,0.00013971,2]
[335444475,1724236231673,-1472.1462219,0.00013971,2]
[335444476,1724236231693,-781.99865427,0.00013971,2]
[335444477,1724236231720,-405.0,0.00013971,2]
[335444478,1724236231731,-5687.19154647,0.00013971,2]
[335444479,1724236231743,-2875.83465455,0.00013971,2]
[335444480,1724236231753,-499.99,0.00013971,2]
[335444481,1724236231762,-2294.11,0.00014128,2]
[335444482,1724236231778,-531.49545144,0.00014398,2]
[335444483,1724236231787,-374.33,0.00014533,2]
[335444484,1724236231797,-168.0,0.00014545,2]
[335444486,1724236231807,-155.0,0.00014681,2]
[335444487,1724236231816,-335.87865654,0.0001469,2]
[335444489,1724236231826,-578.03,0.00014753,2]
[335444491,1724236231835,-603.7,0.0001478,3]
[335444493,1724236231845,-150.88,0.0001478,2]
[335444495,1724236231854,-150.0,0.00014788,2]
[335444497,1724236231863,-500.0,0.00014789,2]
[335444499,1724236231872,-500.0,0.00014789,2]
[335444501,1724236231882,-500.0,0.00014789,2]
[335444503,1724236231892,-500.0,0.00014789,2]
[335444504,1724236231901,-500.0,0.00014789,2]
[335444505,1724236231911,-500.0,0.00014789,2]
[335444506,1724236231920,-53.31551988,0.00014789,2]
[335444507,1724236231931,-361.36554768,0.00014789,2]
[335444508,1724236231943,-85.31893244,0.00014789,2]
[335444509,1724236231953,-500.0,0.00014789,2]
[335444510,1724236231962,-336.1557548,0.00014789,2]
[335444511,1724236231972,-500.0,0.00014789,2]
[335444512,1724236231982,-346.26531276,0.00014789,2]
[335444513,1724236231998,-153.73468724,0.00014789,2]
[335444514,1724236232008,-466.84315709,0.00014789,2]
[335444515,1724236232018,-500.0,0.00014789,2]
[335444516,1724236232028,-500.0,0.00014789,2]
[335444517,1724236232037,-500.0,0.00014789,2]
[335444518,1724236232047,-386.62215567,0.00014789,2]
[335444519,1724236232059,-227.07949835,0.00014789,2]
[335444520,1724236232069,-500.0,0.00014789,2]
[335444521,1724236232079,-212.12050165,0.00014789,2]
[335444522,1724236232091,-287.87949835,0.00014789,2]
[335444523,1724236232101,-500.0,0.00014789,2]
[335444524,1724236232110,-500.0,0.00014789,2]
[335444525,1724236232120,-178.2825687,0.00014789,2]
[335444526,1724236232129,-500.0,0.00014789,2]
[335444527,1724236232139,-645.02167651,0.00014789,2]
[335444528,1724236232148,-500.0,0.00014789,2]
[335444529,1724236232158,-500.0,0.00014789,2]
[335444530,1724236232168,-500.0,0.00014789,2]
[335444531,1724236232177,-500.0,0.00014789,2]
[335444532,1724236232186,-500.0,0.00014789,2]
[335444533,1724236232195,-309.60252263,0.00014789,2]
[335444534,1724236232374,-499.99999999,0.00014789,2]
[335444535,1724236232384,-499.99999999,0.00014789,2]
[335444536,1724236232394,-4318.1251668,0.0001479,3]
[335444537,1724236232405,-3754.52126582,0.0001479,3]
[335444538,1724236232417,-4633.01478385,0.0001479,3]
[335444539,1724236232427,-1956.37593354,0.0001479,3]
[335444546,1724236237614,-1756.53887224,0.0001479,3]
[335444547,1724236237626,-795.2682055,0.0001479,3]
[335444548,1724236237638,-1007.38297438,0.0001479,3]
[335444549,1724236237649,-9257.565367,0.0001479,3]
[335444550,1724236237661,-12823.03817754,0.0001479,3]
[335444551,1724236237716,-2111.13867946,0.0001479,3]
[335444552,1724236237801,-315.43574382,0.0001479,3]
[335444553,1724236237812,-343.85707999,0.0001479,3]
[335444554,1724236237823,-675.54813812,0.0001479,3]
[335444555,1724236237890,-17003.49677262,0.0001479,3]
[335444556,1724236237901,-7035.46927457,0.0001479,3]
[335444557,1724236237912,-23786.8659421,0.0001479,3]
[335444558,1724236237924,-26980.17659155,0.0001479,3]
[335444559,1724236237948,-3133.92547311,0.0001479,3]
[335444560,1724236237959,-398.82036052,0.0001479,3]
[335444713,1724236239698,-2408.76417884,0.00014708,2]
[335444715,1724236239707,-289.68158216,0.0001479,3]
[335444724,1724236239781,-4925.39450496,0.0001479,3]
[335444727,1724236239798,-581.0,0.0001479,3]
[335444729,1724236239809,-1489.21595614,0.0001479,3]
[335444731,1724236239820,-2687.74925122,0.0001479,3]
[335444733,1724236239831,-5307.9,0.0001479,3]
[335444736,1724236239842,-711.24,0.0001479,3]
[335444756,1724236240039,-284.29469608,0.0001479,3]
[335445012,1724236242596,-500.0,0.00014789,2]
[335445014,1724236242606,-38532.7306735,0.0001479,3]
[335445016,1724236242618,-8679.59506081,0.0001479,3]
[335445018,1724236242629,-1605.35180376,0.0001479,3]
[335445020,1724236242641,-500.283551,0.0001479,3]
[335445022,1724236242652,-1170.0,0.0001479,3]
[335445135,1724236243811,-1011.21766666,0.0001479,3]
[335445301,1724236245545,-2660.46376001,0.0001479,3]
[335445310,1724236245631,-1294.63954852,0.0001479,3]
[335445313,1724236245652,-582.42153888,0.0001479,3]
[335445341,1724236245939,-2308.78523856,0.0001479,3]
[335446559,1724236392151,527.19740296,0.00010999,2]
[335446560,1724236566031,156.92,0.00010959,2]
[335446561,1724236992672,6925.26146073,0.00010999,2]
[335446579,1724237431802,-352.95,0.00011614,2]
[335446580,1724237431811,-35.93750137,0.00012089,2]
[335446581,1724237431831,-1930.70798679,0.00012089,2]
[335446582,1724237431841,-1865.29975027,0.00012942,2]
[335446583,1724237431851,-197.09206619,0.00013001,2]
[335446584,1724237431866,-297.42341449,0.00013042,2]
[335446585,1724237431875,-235.40013333,0.00013086,2]
[335446586,1724237431884,-155.0,0.00013292,2]
[335446587,1724237431894,-9490.8,0.00013398,2]
[335446588,1724237431905,-1249.29,0.00013398,2]
[335446589,1724237431914,-800.0,0.00013504,2]
[335446590,1724237431924,-801.98,0.00013531,2]
[335446591,1724237431933,-169.78,0.00013596,2]
[335446592,1724237431945,-150.0,0.00013671,2]
[335446593,1724237431955,-352.95,0.00013878,2]
[335446594,1724237431964,-298.13,0.00013887,2]
[335446595,1724237431974,-418.95,0.00013887,2]
[335446596,1724237431983,-790.69,0.00014041,2]
[335446598,1724237431995,-421.43,0.00014141,2]
[335446600,1724237432005,-155.0,0.00014235,2]
[335446602,1724237432014,-531.49545144,0.00014245,2]
[335446603,1724237432024,-300.0,0.00014256,2]
[335446605,1724237432033,-200.0,0.00014288,2]
[335446607,1724237432043,-499.99,0.00014292,2]
[335446609,1724237432052,-6195.0,0.00014456,2]
[335446611,1724237432064,-1357.67,0.00014466,2]
[335446613,1724237432073,-150.0,0.0001464,2]
[335446615,1724237432082,-333.43189462,0.0001465,2]
[335446617,1724237432092,-14034.28008237,0.00014678,2]
[335446619,1724237432101,-379.00069831,0.0001468,2]
[335446621,1724237432110,-543.18989785,0.00014681,2]
[335446623,1724237432120,-174.68941142,0.000147,2]
[335446624,1724237432129,-316.99883472,0.000147,2]
[335446626,1724237432138,-1605.84278588,0.000147,2]
[335446628,1724237432147,-14034.28008231,0.0001477,2]
[335446629,1724237432156,-9603.91496658,0.00014772,3]
[335446630,1724237432165,-150.81,0.00014772,2]
[335446631,1724237432174,-67227.4047661,0.00014775,3]
[335446632,1724237432183,-9603.91496658,0.00014777,3]
[335446633,1724237432193,-54422.1848106,0.00014778,3]
[335446634,1724237432202,-1205.39,0.00014778,2]
[335446635,1724237432211,-500.0,0.00014778,2]
[335446636,1724237432221,-18200.9730386,0.00014778,3]
[335446637,1724237432230,-500.0,0.00014779,2]
[335446638,1724237432240,-500.0,0.00014779,2]
[335446639,1724237432250,-3898.12,0.00014779,2]
[335446640,1724237432259,-4672.45,0.00014779,2]
[335446641,1724237432269,-500.0,0.00014779,2]
[335446642,1724237432287,-7508.71,0.00014779,2]
[335446643,1724237432298,-18353.66,0.00014779,2]
[335446644,1724237432308,-529.79335145,0.00014779,2]
[335446645,1724237432317,-23963.81,0.00014779,2]
[335446646,1724237432327,-500.0,0.00014779,2]
[335446647,1724237432337,-1110.92,0.00014779,2]
[335446648,1724237432347,-500.0,0.00014779,2]
[335446649,1724237432356,-7300.58,0.00014779,2]
[335446650,1724237432366,-500.0,0.00014779,2]
[335446651,1724237432375,-9662.21,0.00014779,2]
[335446652,1724237432384,-5856.35,0.00014779,2]
[335446653,1724237432393,-2839.54,0.00014779,2]
[335446654,1724237432403,-500.0,0.00014779,2]
[335446655,1724237432412,-500.0,0.00014779,2]
[335446656,1724237432422,-6934.59,0.00014779,2]
[335446657,1724237432431,-500.0,0.00014779,2]
[335446658,1724237432440,-500.0,0.00014779,2]
[335446659,1724237432449,-500.0,0.00014779,2]
[335446660,1724237432459,-1837.88,0.00014779,2]
[335446661,1724237432468,-500.0,0.00014779,2]
[335446662,1724237432477,-500.0,0.00014779,2]
[335446663,1724237432486,-2773.99,0.00014779,2]
[335446664,1724237432498,-2697.35,0.00014779,2]
[335446665,1724237432507,-601.5541219,0.00014779,2]
[335446666,1724237432516,-10813.23,0.00014779,2]
[335446667,1724237432526,-500.0,0.00014779,2]
[335446668,1724237432535,-3799.3,0.00014779,2]
[335446669,1724237432544,-500.0,0.00014779,2]
[335446670,1724237432553,-500.0,0.00014779,2]
[335446671,1724237432562,-7632.87150764,0.00014779,2]
[335446672,1724237432575,-573.19742117,0.00014779,2]
[335446673,1724237432598,-2780.08729667,0.00014779,2]
[335446674,1724237432610,-1033.7,0.00014779,2]
[335446675,1724237432621,-299.6900001,0.00014779,2]
[335446676,1724237432633,-5970.59377442,0.00014779,2]
[335446677,1724237432643,-500.0,0.00014779,2]
[335446678,1724237432652,-500.0,0.00014779,2]
[335446679,1724237432662,-5757.63,0.00014779,2]
[335446680,1724237432671,-2318.72,0.00014779,2]
[335446681,1724237432682,-436.98392252,0.00014779,2]
[335446682,1724237432870,-5666.42,0.00014779,2]
[335446683,1724237432882,-1224.32,0.00014779,2]
[335446684,1724237432892,-500.0,0.00014779,2]
[335446685,1724237432901,-273.81305097,0.00014779,2]
[335446686,1724237432911,-5962.97,0.00014779,2]
[335446687,1724237432920,-6069.97448332,0.00014779,2]
[335446693,1724237437848,-4581.97551668,0.00014779,2]
[335446694,1724237437858,-567.91,0.00014779,2]
[335446695,1724237437871,-2148.94196138,0.00014779,2]
[335446696,1724237437969,-1586.74803862,0.00014779,2]
[335446697,1724237437979,-4477.76,0.00014779,2]
[335446698,1724237437988,-15210.50885378,0.00014779,3]
[335446699,1724237438000,-28686.90924801,0.00014779,3]
[335446700,1724237438011,-10705.50101401,0.00014779,3]
[335446701,1724237438020,-512.33739327,0.0001478,2]
[335446702,1724237438032,-31925.2012,0.0001478,2]
[335446703,1724237438043,-13565.0,0.0001478,2]
[335446704,1724237438055,-3997.46140673,0.0001478,2]
[335446705,1724237438065,-150.81,0.0001478,2]
[335446706,1724237438077,-419.51001189,0.00014781,2]
[335446707,1724237438087,-500.0,0.00014781,2]
[335446708,1724237438097,-500.0,0.00014781,2]
[335446709,1724237438107,-500.0,0.00014781,2]
[335446710,1724237438117,-500.0,0.00014781,2]
[335446711,1724237438127,-500.0,0.00014781,2]
[335446713,1724237438136,-500.0,0.00014781,2]
[335446715,1724237438146,-404.85736457,0.00014781,2]
[335446717,1724237438155,-196.64648908,0.00014781,2]
[335446719,1724237438165,-500.0,0.00014781,2]
[335446721,1724237438174,-500.0,0.00014781,2]
[335446723,1724237438185,-500.0,0.00014781,2]
[335446725,1724237438194,-500.0,0.00014781,2]
[335446727,1724237438203,-500.0,0.00014781,2]
[335446729,1724237438213,-500.0,0.00014781,2]
[335446731,1724237438222,-500.0,0.00014781,2]
[335446733,1724237438232,-500.0,0.00014781,2]
[335446735,1724237438242,-500.0,0.00014781,2]
[335446736,1724237438253,-500.0,0.00014781,2]
[335446738,1724237438262,-500.0,0.00014781,2]
[335446740,1724237438271,-500.0,0.00014781,2]
[335446742,1724237438280,-500.0,0.00014781,2]
[335446744,1724237438289,-500.0,0.00014781,2]
[335446746,1724237438298,-500.0,0.00014781,2]
[335446748,1724237438309,-500.0,0.00014781,2]
[335446750,1724237438318,-582.60127744,0.00014781,2]
[335446752,1724237438327,-7777.01380029,0.00014782,2]
[335446755,1724237438346,-27204.77267636,0.00014782,2]
[335446757,1724237438355,-26965.77732364,0.00014785,2]
[335446758,1724237438366,-9553.154996,0.00014785,2]
[335446759,1724237438377,-9084.2900005,0.00014785,2]
[335446760,1724237438387,-13724.235,0.00014785,2]
[335446761,1724237438398,-1384.75,0.00014785,2]
[335446762,1724237438409,-5915.5,0.00014785,2]
[335446763,1724237438420,-341.94086854,0.00014785,2]
[335446764,1724237438431,-18730.35181132,0.00014785,2]
[335446765,1724237438441,-6138.09868292,0.00014788,2]
[335446791,1724237440054,-1276.0146638,0.00013332,2]
[335446792,1724237440064,-196.2955952,0.00014782,2]
[335446793,1724237440073,-13861.90131708,0.00014788,2]
[335446794,1724237440083,-500.0,0.00014788,2]
[335446795,1724237440093,-500.0,0.00014788,2]
[335446796,1724237440103,-756.76,0.00014788,2]
[335446797,1724237440113,-500.0,0.00014788,2]
[335446798,1724237440122,-500.0,0.00014788,2]
[335446799,1724237440132,-500.0,0.00014788,2]
[335446800,1724237440141,-500.0,0.00014788,2]
[335446801,1724237440150,-500.0,0.00014788,2]
[335446802,1724237440159,-500.0,0.00014788,2]
[335446803,1724237440169,-500.0,0.00014788,2]
[335446804,1724237440178,-500.0,0.00014788,2]
[335446805,1724237440188,-500.0,0.00014788,2]
[335446806,1724237440197,-500.0,0.00014788,2]
[335446807,1724237440207,-500.0,0.00014788,2]
[335446808,1724237440216,-500.0,0.00014788,2]
[335446809,1724237440225,-1076.96,0.00014788,2]
[335446810,1724237440235,-1191.26,0.00014788,2]
[335446811,1724237440244,-835.51,0.00014788,2]
[335446812,1724237440255,-721.58,0.00014788,2]
[335446813,1724237440265,-500.0,0.00014788,2]
[335446814,1724237440275,-1847.13,0.00014788,2]
[335446815,1724237440284,-500.0,0.00014788,2]
[335446816,1724237440294,-953.34,0.00014788,2]
[335446817,1724237440303,-2110.46,0.00014788,2]
[335446818,1724237440312,-500.0,0.00014788,2]
[335446819,1724237440322,-4570.71,0.00014788,2]
[335446820,1724237440331,-210.66282899,0.00014788,2]
[335446821,1724237440341,-500.0,0.00014788,2]
[335446822,1724237440350,-2707.15,0.00014788,2]
[335446823,1724237440359,-500.0,0.00014788,2]
[335446824,1724237440368,-500.0,0.00014788,2]
[335446825,1724237440378,-500.0,0.00014788,2]
[335446826,1724237440388,-500.0,0.00014788,2]
[335446827,1724237440545,-500.0,0.00014788,2]
[335446828,1724237440554,-500.0,0.00014788,2]
[335446829,1724237440564,-722.05,0.00014788,2]
[335446830,1724237440574,-500.0,0.00014788,2]
[335446831,1724237440583,-784.27,0.00014788,2]
[335446832,1724237440593,-1424.56,0.00014788,2]
[335446833,1724237440603,-500.0,0.00014788,2]
[335446834,1724237440612,-4685.24,0.00014788,2]
[335446835,1724237440622,-500.0,0.00014788,2]
[335446836,1724237440631,-2864.41,0.00014788,2]
[335446837,1724237440640,-500.0,0.00014788,2]
[335446838,1724237440649,-808.73,0.00014788,2]
[335446840,1724237440659,-500.0,0.00014788,2]
[335446842,1724237440668,-500.0,0.00014788,2]
[335446843,1724237440677,-564.89,0.00014788,2]
[335446846,1724237440687,-523.35,0.00014788,2]
[335446847,1724237440696,-500.0,0.00014788,2]
[335446848,1724237440705,-1601.8,0.00014788,2]
[335446849,1724237440714,-1302.02,0.00014788,2]
[335446850,1724237440724,-500.0,0.00014788,2]
[335446851,1724237440734,-500.0,0.00014788,2]
[335446852,1724237440744,-9035.11,0.00014788,2]
[335446853,1724237440760,-500.0,0.00014788,2]
[335446854,1724237440769,-3935.11,0.00014788,2]
[335446855,1724237440779,-6397.167724,0.00014788,2]
[335446856,1724237440789,-617.74,0.00014788,2]
[335446857,1724237440800,-317.47367549,0.00014788,2]
[335446858,1724237440810,-17805.83,0.00014788,2]
[335446859,1724237440819,-38682.545893,0.00014788,2]
[335446860,1724237440832,-6929.324107,0.00014788,2]
[335446861,1724237440842,-500.0,0.00014788,2]
[335446862,1724237440851,-500.0,0.00014788,2]
[335446863,1724237440863,-1874.54,0.00014788,2]